[Event "106th British-ch Major 2019"]
[Site "Torquay"]
[Date "2019.08.01"]
[Round "6.13"]
[White "Metcalfe, Charlie P"]
[Black "Balaji, Aaravamudhan"]
[Result "0-1"]
[ECO "E94"]
[WhiteElo "1739"]
[BlackElo "2034"]
[Annotator "NA"]
[PlyCount "74"]
[EventDate "2019.07.27"]
[EventType "swiss"]
[EventCountry "GBR"]
[SourceTitle "playchess.com"]
[Source "ChessBase"]
[SourceQuality "1"]
[TimeControl "40/5400+30:1800+30"]

1. d4 {[%emt 0:00:00]} Nf6 {[%emt 0:00:00]} 2. Nf3 {[%emt 0:00:00]} g6 {[%emt 0:00:00]} 3. c4 {[%emt 0:00:00]} Bg7 {[%emt 0:00:00]} 4. Nc3 {[%emt 0:00:00]} d6 {[%emt 0:00:00]} 5. e4 {[%emt 0:00:00]} O-O {[%emt 0:00:00]} 6. Be2 {[%emt 0:00:00]} Nbd7 {[%emt 0:00:15]} 7. O-O {[%emt 0:00:00]} e5 {[%emt 0:01:05]} 8. Be3 {[%emt 0:00:00]} Ng4 {[%emt 0:00:09]} 9. Bg5 {[%emt 0:00:00]} f6 {[%emt 0:00:08]} 10. Bd2 {[%emt 0:00:00]} Nh6 {[%emt 0:01:34]} 11. Qc2 {[%emt 0:00:28]} Nf7 {[%emt 0:04:37]} 12. Be3 {[%emt 0:06:02]} c6 {[%emt 0:07:21]} 13. Rfd1 {[%emt 0:12:37]} Qe7 {[%emt 0:05:22]} 14. b4 {[%emt 0:09:36]} Nd8 {[%emt 0:16:28]} 15. d5 {[%emt 0:19:35]} f5 {[%emt 0:17:41]} 16. c5 {[%emt 0:08:28]} f4 {[%emt 0:09:11]} 17. dxc6 {[%emt 0:00:08]} bxc6 {[%emt 0:01:13]} 18. Bc4+ {[%emt 0:06:37]} Kh8 {[%emt 0:00:34]} 19. cxd6 {[%emt 0:00:09]} Qf6 {[%emt 0:00:30]} 20. Bc5 {[%emt 0:06:37]} g5 {[%emt 0:02:23]} 21. Nd2 {[%emt 0:02:52]} g4 {[%emt 0:03:20]} 22. Nb3 {[%emt 0:00:28]} Qh4 {[%emt 0:07:53]} 23. g3 {[%emt 0:01:08]} Qh5 {[%emt 0:02:50]} 24. b5 {[%emt 0:00:41]} Rf6 {[%emt 0:01:26]} 25. bxc6 {[%emt 0:01:05]} Nxc6 {[%emt 0:03:19]} 26. Nd5 {[%emt 0:08:14]} Rh6 {[%emt 0:01:18]} 27. Ne7 {[%emt 0:02:48]} Qxh2+ {[%emt 0:07:10]} 28. Kf1 {[%emt 0:00:00]} Nxc5 {[%emt 0:03:32]} 29. Nxc6 {[%emt 0:06:16]} Qh1+ {[%emt 0:01:23]} 30. Ke2 {[%emt 0:00:03]} Qf3+ {[%emt 0:00:22]} 31. Ke1 {[%emt 0:00:23]} Nxe4 {[%emt 0:01:52]} 32. d7 {[%emt 0:03:06]} Bxd7 {[%emt 0:00:11]} 33. Rxd7 {[%emt 0:00:31]} Rh1+ {[%emt 0:00:11]} 34. Bf1 {[%emt 0:00:02]} fxg3 {[%emt 0:00:26]} 35. Rd2 {[%emt 0:04:12]} Rxf1+ {[%emt 0:01:15]} 36. Kxf1 {[%emt 0:00:06]} g2+ {[%emt 0:00:07]} 37. Kg1 {[%emt 0:00:24]} Qh3 {[%emt 0:02:27]} 0-1

[Event "106th British-ch Major 2019"]
[Site "Torquay"]
[Date "2019.08.01"]
[Round "6.14"]
[White "Sheerin, Alex"]
[Black "Warren, Alex M"]
[Result "1/2-1/2"]
[ECO "D00"]
[WhiteElo "1845"]
[BlackElo "1967"]
[Annotator "NA"]
[PlyCount "80"]
[EventDate "2019.07.27"]
[EventType "swiss"]
[EventCountry "GBR"]
[SourceTitle "playchess.com"]
[Source "ChessBase"]
[SourceQuality "1"]
[TimeControl "40/5400+30:1800+30"]

1. d4 {[%emt 0:00:00]} Nf6 {[%emt 0:00:00]} 2. Nc3 {[%emt 0:00:14]} d5 {[%emt 0:01:05]} 3. Bf4 {[%emt 0:00:07]} g6 {[%emt 0:00:30]} 4. Qd2 {[%emt 0:00:47]} Bf5 {[%emt 0:12:19]} 5. f3 {[%emt 0:03:36]} h5 {[%emt 0:05:06]} 6. O-O-O {[%emt 0:03:49]} Bg7 {[%emt 0:02:16]} 7. h4 {[%emt 0:02:17]} a6 {[%emt 0:13:03]} 8. Nh3 {[%emt 0:02:35]} c5 {[%emt 0:23:09]} 9. dxc5 {[%emt 0:05:16]} Nc6 {[%emt 0:00:21]} 10. Nxd5 {[%emt 0:16:12]} Nxd5 {[%emt 0:00:22]} 11. Qxd5 {[%emt 0:00:11]} Qa5 {[%emt 0:00:48]} 12. Ng5 {[%emt 0:08:49]} O-O {[%emt 0:04:26]} 13. Bd2 {[%emt 0:11:12]} Qb5 {[%emt 0:09:44]} 14. Qb3 {[%emt 0:01:26]} Qxc5 {[%emt 0:01:24]} 15. e4 {[%emt 0:02:35]} Nd4 {[%emt 0:03:25]} 16. Qc4 {[%emt 0:01:32]} Qe5 {[%emt 0:04:08]} 17. Bc3 {[%emt 0:03:08]} Qf4+ {[%emt 0:00:17]} 18. Kb1 {[%emt 0:03:06]} Be6 {[%emt 0:02:40]} 19. Nxe6 {[%emt 0:01:35]} Nxe6 {[%emt 0:00:24]} 20. Bxg7 {[%emt 0:00:27]} Kxg7 {[%emt 0:00:48]} 21. Qb4 {[%emt 0:03:29]} Rfd8 {[%emt 0:03:56]} 22. Bc4 {[%emt 0:03:34]} Qxh4 {[%emt 0:02:28]} 23. Bxe6 {[%emt 0:01:11]} fxe6 {[%emt 0:00:55]} 24. Rdg1 {[%emt 0:07:41]} Qf6 {[%emt 0:01:20]} 25. g4 {[%emt 0:00:10]} Rd4 {[%emt 0:01:36]} 26. Qc5 {[%emt 0:03:42]} b6 {[%emt 0:01:23]} 27. Qxb6 {[%emt 0:02:03]} hxg4 {[%emt 0:00:25]} 28. Rxg4 {[%emt 0:01:56]} Rad8 {[%emt 0:00:29]} 29. Rgg1 {[%emt 0:01:23]} Qxf3 {[%emt 0:00:32]} 30. b3 {[%emt 0:06:46]} Rd1+ {[%emt 0:00:45]} 31. Rxd1 {[%emt 0:00:50]} Rxd1+ {[%emt 0:00:01]} 32. Rxd1 {[%emt 0:00:01]} Qxd1+ {[%emt 0:00:01]} 33. Kb2 {[%emt 0:00:01]} Qd6 {[%emt 0:00:31]} 34. Qe3 {[%emt 0:01:13]} Qe5+ {[%emt 0:00:34]} 35. c3 {[%emt 0:01:26]} g5 {[%emt 0:00:35]} 36. Kc2 {[%emt 0:00:56]} g4 {[%emt 0:01:37]} 37. Kd3 {[%emt 0:00:47]} Kg6 {[%emt 0:00:44]} 38. c4 {[%emt 0:01:04]} Qd6+ {[%emt 0:01:59]} 39. Kc3 {[%emt 0:01:18]} Qe5+ {[%emt 0:00:48]} 40. Kd3 {[%emt 0:00:13]} Qd6+ {[%emt 0:01:01]} 1/2-1/2

[Event "106th British-ch Major 2019"]
[Site "Torquay"]
[Date "2019.08.01"]
[Round "6.15"]
[White "Ifalore, Michael"]
[Black "Price, Gwilym T"]
[Result "0-1"]
[ECO "A26"]
[WhiteElo "1907"]
[BlackElo "2138"]
[Annotator "NA"]
[PlyCount "66"]
[EventDate "2019.07.27"]
[EventType "swiss"]
[EventCountry "GBR"]
[SourceTitle "playchess.com"]
[Source "ChessBase"]
[SourceQuality "1"]
[TimeControl "40/5400+30:1800+30"]

1. c4 {[%emt 0:00:00]} g6 {[%emt 0:00:00]} 2. g3 {[%emt 0:00:00]} Bg7 {[%emt 0:00:00]} 3. Bg2 {[%emt 0:00:08]} d6 {[%emt 0:00:00]} 4. Nc3 {[%emt 0:00:14]} e5 {[%emt 0:00:00]} 5. e4 {[%emt 0:00:05]} Nc6 {[%emt 0:00:06]} 6. Nge2 {[%emt 0:00:06]} Nge7 {[%emt 0:00:27]} 7. O-O {[%emt 0:00:11]} O-O {[%emt 0:00:15]} 8. d3 {[%emt 0:01:24]} f5 {[%emt 0:02:38]} 9. Be3 {[%emt 0:05:08]} Be6 {[%emt 0:02:38]} 10. Nd5 {[%emt 0:01:12]} Qd7 {[%emt 0:01:36]} 11. Rb1 {[%emt 0:10:33]} Rab8 {[%emt 0:06:54]} 12. b4 {[%emt 0:07:06]} a6 {[%emt 0:17:14]} 13. a4 {[%emt 0:13:06]} h6 {[%emt 0:18:12]} 14. b5 {[%emt 0:00:45]} axb5 {[%emt 0:00:06]} 15. axb5 {[%emt 0:00:04]} Nd8 {[%emt 0:00:14]} 16. f4 {[%emt 0:04:49]} Nf7 {[%emt 0:04:55]} 17. d4 {[%emt 0:05:30]} fxe4 {[%emt 0:03:46]} 18. Bxe4 {[%emt 0:12:30]} Nxd5 {[%emt 0:07:50]} 19. cxd5 {[%emt 0:00:11]} Bf5 {[%emt 0:00:53]} 20. Qc2 {[%emt 0:02:47]} Rbe8 {[%emt 0:02:42]} 21. Bxf5 {[%emt 0:13:40]} Qxf5 {[%emt 0:03:57]} 22. Qxc7 {[%emt 0:08:01]} Qd3 {[%emt 0:04:08]} 23. Bf2 {[%emt 0:05:28]} Qxe2 {[%emt 0:00:21]} 24. Rfe1 {[%emt 0:00:58]} Qf3 {[%emt 0:01:23]} 25. dxe5 {[%emt 0:00:30]} Ng5 {[%emt 0:03:36]} 26. Rb2 {[%emt 0:02:24]} Nh3+ {[%emt 0:00:35]} 27. Kf1 {[%emt 0:00:04]} Bxe5 {[%emt 0:02:06]} 28. Rxe5 {[%emt 0:03:27]} Rxe5 {[%emt 0:01:08]} 29. fxe5 {[%emt 0:00:41]} Qh1+ {[%emt 0:00:33]} 30. Ke2 {[%emt 0:00:07]} Rxf2+ {[%emt 0:00:12]} 31. Ke3 {[%emt 0:01:08]} Qe1+ {[%emt 0:01:07]} 32. Kd3 {[%emt 0:00:18]} Qd1+ {[%emt 0:00:07]} 33. Ke4 {[%emt 0:00:43]} Ng5+ {[%emt 0:00:10]} 0-1

[Event "106th British-ch Major 2019"]
[Site "Torquay"]
[Date "2019.08.01"]
[Round "6.16"]
[White "Eames, Robert S"]
[Black "Pink, Joshua"]
[Result "1-0"]
[ECO "B12"]
[WhiteElo "2136"]
[BlackElo "1907"]
[Annotator "NA"]
[PlyCount "51"]
[EventDate "2019.07.27"]
[EventType "swiss"]
[EventCountry "GBR"]
[SourceTitle "playchess.com"]
[Source "ChessBase"]
[SourceQuality "1"]
[TimeControl "40/5400+30:1800+30"]

1. e4 {[%emt 19:32:02]} c6 {[%emt 0:00:20]} 2. d4 {[%emt 0:00:28]} d5 {[%emt 0:00:07]} 3. e5 {[%emt 0:00:22]} c5 {[%emt 0:00:46]} 4. dxc5 {[%emt 0:00:18]} e6 {[%emt 0:00:12]} 5. a3 {[%emt 0:00:40]} Bxc5 {[%emt 0:03:01]} 6. b4 {[%emt 0:00:19]} Be7 {[%emt 0:01:53]} 7. Nf3 {[%emt 0:04:03]} Nc6 {[%emt 0:03:13]} 8. Bd3 {[%emt 0:00:52]} Qc7 {[%emt 0:06:16]} 9. Bb2 {[%emt 0:02:37]} Bd7 {[%emt 0:01:57]} 10. O-O {[%emt 0:02:38]} Nh6 {[%emt 0:06:48]} 11. Qe2 {[%emt 0:01:37]} g6 {[%emt 0:03:23]} 12. Nbd2 {[%emt 0:01:51]} Nf5 {[%emt 0:01:52]} 13. c4 {[%emt 0:01:16]} O-O {[%emt 0:08:12]} 14. Rac1 {[%emt 0:03:17]} Qd8 {[%emt 0:01:42]} 15. Rfd1 {[%emt 0:01:17]} f6 {[%emt 0:02:50]} 16. cxd5 {[%emt 0:02:57]} exd5 {[%emt 0:05:29]} 17. e6 {[%emt 0:00:27]} Be8 {[%emt 0:00:20]} 18. Bxf5 {[%emt 0:05:14]} gxf5 {[%emt 0:00:06]} 19. Nh4 {[%emt 0:00:24]} Bg6 {[%emt 0:02:58]} 20. Nc4 {[%emt 0:07:28]} f4 {[%emt 0:07:20]} 21. Nxg6 {[%emt 0:04:05]} hxg6 {[%emt 0:00:07]} 22. Qg4 {[%emt 0:08:54]} g5 {[%emt 0:02:03]} 23. Qf5 {[%emt 0:05:25]} Kg7 {[%emt 0:03:25]} 24. Qxg5+ {[%emt 0:00:28]} Kh7 {[%emt 0:00:20]} 25. Qh5+ {[%emt 0:00:51]} Kg7 {[%emt 0:00:08]} 26. Rxd5 {[%emt 0:00:20]} 1-0

[Event "106th British-ch Major 2019"]
[Site "Torquay"]
[Date "2019.08.01"]
[Round "6.17"]
[White "Rice, Chris B"]
[Black "Salmons, Calum"]
[Result "1/2-1/2"]
[ECO "A36"]
[WhiteElo "2040"]
[BlackElo "1898"]
[Annotator "NA"]
[PlyCount "48"]
[EventDate "2019.07.27"]
[EventType "swiss"]
[EventCountry "GBR"]
[SourceTitle "playchess.com"]
[Source "ChessBase"]
[SourceQuality "1"]
[TimeControl "40/5400+30:1800+30"]

1. c4 {[%emt 0:00:00]} c5 {[%emt 0:00:00]} 2. g3 {[%emt 0:00:00]} g6 {[%emt 0:00:00]} 3. Bg2 {[%emt 0:00:00]} Bg7 {[%emt 0:00:04]} 4. Nc3 {[%emt 0:00:00]} Nc6 {[%emt 0:00:19]} 5. a3 {[%emt 0:00:00]} e6 {[%emt 0:00:22]} 6. b4 {[%emt 0:03:21]} Nxb4 {[%emt 0:03:42]} 7. axb4 {[%emt 0:00:21]} cxb4 {[%emt 0:00:14]} 8. d4 {[%emt 0:06:15]} bxc3 {[%emt 0:00:36]} 9. Ba3 {[%emt 0:00:55]} Ne7 {[%emt 0:06:48]} 10. e3 {[%emt 0:00:51]} d5 {[%emt 0:05:40]} 11. cxd5 {[%emt 0:03:39]} Nxd5 {[%emt 0:01:17]} 12. Ne2 {[%emt 0:07:33]} Bf8 {[%emt 0:06:55]} 13. Bxf8 {[%emt 0:00:57]} Kxf8 {[%emt 0:00:20]} 14. Qb3 {[%emt 0:01:15]} Kg7 {[%emt 0:07:35]} 15. O-O {[%emt 0:00:10]} b6 {[%emt 0:05:43]} 16. e4 {[%emt 0:00:16]} Nf6 {[%emt 0:00:53]} 17. e5 {[%emt 0:00:09]} Nd5 {[%emt 0:00:29]} 18. Nxc3 {[%emt 0:00:43]} Bb7 {[%emt 0:00:51]} 19. Nb5 {[%emt 0:00:07]} a6 {[%emt 0:08:16]} 20. Nd6 {[%emt 0:00:28]} Qe7 {[%emt 0:11:11]} 21. Rfc1 {[%emt 0:08:47]} b5 {[%emt 0:04:46]} 22. Rc5 {[%emt 0:07:32]} Rhd8 {[%emt 0:02:26]} 23. Rac1 {[%emt 0:17:45]} Rxd6 {[%emt 0:06:24]} 24. exd6 {[%emt 0:00:08]} Qxd6 {[%emt 0:00:10]} 1/2-1/2

[Event "106th British-ch Major 2019"]
[Site "Torquay"]
[Date "2019.08.01"]
[Round "6.18"]
[White "Menadue, Jeremy Fs"]
[Black "Garnett, John S"]
[Result "1-0"]
[ECO "D11"]
[WhiteElo "2016"]
[BlackElo "1885"]
[Annotator "NA"]
[PlyCount "55"]
[EventDate "2019.07.27"]
[EventType "swiss"]
[EventCountry "GBR"]
[SourceTitle "playchess.com"]
[Source "ChessBase"]
[SourceQuality "1"]
[TimeControl "40/5400+30:1800+30"]

1. d4 {[%emt 0:00:00]} d5 {[%emt 0:00:00]} 2. Nf3 {[%emt 0:00:59]} Nf6 {[%emt 0:00:00]} 3. c4 {[%emt 0:00:27]} c6 {[%emt 0:00:14]} 4. e3 {[%emt 0:02:45]} Bg4 {[%emt 0:00:41]} 5. Nc3 {[%emt 0:02:54]} e6 {[%emt 0:01:35]} 6. h3 {[%emt 0:05:18]} Bxf3 {[%emt 0:01:02]} 7. Qxf3 {[%emt 0:00:08]} Nbd7 {[%emt 0:00:57]} 8. Bd3 {[%emt 0:01:56]} Bd6 {[%emt 0:01:52]} 9. O-O {[%emt 0:03:14]} O-O {[%emt 0:00:50]} 10. cxd5 {[%emt 0:07:44]} cxd5 {[%emt 0:03:11]} 11. e4 {[%emt 0:06:08]} dxe4 {[%emt 0:02:07]} 12. Nxe4 {[%emt 0:00:24]} Be7 {[%emt 0:01:34]} 13. Ng5 {[%emt 0:28:52]} Re8 {[%emt 0:07:50]} 14. Bxh7+ {[%emt 0:08:47]} Kf8 {[%emt 0:09:22]} 15. Bg6 {[%emt 0:02:13]} Qb6 {[%emt 0:02:07]} 16. Bxf7 {[%emt 0:01:55]} Rec8 {[%emt 0:02:10]} 17. Bxe6 {[%emt 0:03:12]} Ke8 {[%emt 0:02:35]} 18. Bf7+ {[%emt 0:07:56]} Kf8 {[%emt 0:00:29]} 19. Bb3 g6 {[%emt 0:04:19]} 20. Be3 {[%emt 0:02:37]} Qa5 {[%emt 0:01:45]} 21. Qxb7 {[%emt 0:01:49]} Rab8 {[%emt 0:01:54]} 22. Qf3 {[%emt 0:00:11]} Kg7 {[%emt 0:01:44]} 23. Ne6+ {[%emt 0:01:31]} Kh7 {[%emt 0:00:25]} 24. Nc5 {[%emt 0:01:07]} Rf8 {[%emt 0:01:47]} 25. Ne6 {[%emt 0:01:05]} Rfc8 {[%emt 0:00:45]} 26. d5 {[%emt 0:01:30]} Ne5 {[%emt 0:01:18]} 27. Qf4 {[%emt 0:01:41]} Nf7 {[%emt 0:00:31]} 28. Bd4 {[%emt 0:01:30]} 1-0

[Event "106th British-ch Major 2019"]
[Site "Torquay"]
[Date "2019.08.01"]
[Round "6.19"]
[White "Roy, Ali"]
[Black "Akeya-Price, Robert A"]
[Result "0-1"]
[ECO "B10"]
[WhiteElo "1871"]
[BlackElo "1974"]
[Annotator "NA"]
[PlyCount "78"]
[EventDate "2019.07.27"]
[EventType "swiss"]
[EventCountry "GBR"]
[SourceTitle "playchess.com"]
[Source "ChessBase"]
[SourceQuality "1"]
[TimeControl "40/5400+30:1800+30"]

1. Nf3 {[%emt 0:00:00]} d5 {[%emt 0:00:00]} 2. g3 {[%emt 0:00:00]} c6 {[%emt 0:00:08]} 3. Bg2 {[%emt 0:00:05]} Bg4 {[%emt 0:00:13]} 4. O-O {[%emt 0:00:12]} Nd7 {[%emt 0:00:19]} 5. d3 {[%emt 0:00:16]} e5 {[%emt 0:00:54]} 6. Nbd2 {[%emt 0:02:07]} Bd6 {[%emt 0:02:53]} 7. e4 {[%emt 0:04:07]} Ngf6 {[%emt 0:01:10]} 8. Qe1 {[%emt 0:01:00]} O-O {[%emt 0:01:42]} 9. h3 {[%emt 0:00:15]} Bxf3 {[%emt 0:04:54]} 10. Nxf3 {[%emt 0:00:59]} Re8 {[%emt 0:02:33]} 11. Nh4 {[%emt 0:05:26]} Qb6 {[%emt 0:04:16]} 12. b3 {[%emt 0:03:43]} a5 {[%emt 0:02:45]} 13. a4 {[%emt 0:01:51]} Bb4 {[%emt 0:05:10]} 14. Bd2 {[%emt 0:02:57]} g6 {[%emt 0:02:29]} 15. Kh1 {[%emt 0:05:38]} Rad8 {[%emt 0:02:57]} 16. exd5 {[%emt 0:04:17]} Nxd5 {[%emt 0:05:18]} 17. Nf3 {[%emt 0:21:15]} Qc5 {[%emt 0:04:12]} 18. c4 {[%emt 0:03:50]} Bxd2 {[%emt 0:01:36]} 19. Qxd2 {[%emt 0:00:21]} Nb4 {[%emt 0:00:43]} 20. d4 {[%emt 0:04:25]} Qf8 {[%emt 0:04:28]} 21. Rad1 {[%emt 0:03:53]} exd4 {[%emt 0:09:28]} 22. Nxd4 {[%emt 0:01:00]} Ne5 {[%emt 0:03:54]} 23. Qc3 {[%emt 0:02:56]} Qg7 {[%emt 0:04:36]} 24. Nc2 {[%emt 0:02:08]} Ned3 {[%emt 0:02:19]} 25. Qd2 {[%emt 0:05:30]} Qf6 {[%emt 0:05:03]} 26. Nxb4 {[%emt 0:09:32]} Nxf2+ {[%emt 0:08:26]} 27. Qxf2 {[%emt 0:00:25]} Qxf2 {[%emt 0:00:08]} 28. Rxf2 {[%emt 0:00:04]} Rxd1+ {[%emt 0:00:07]} 29. Bf1 {[%emt 0:03:42]} axb4 {[%emt 0:00:31]} 30. Kg2 {[%emt 0:01:30]} Re3 {[%emt 0:00:43]} 31. c5 {[%emt 0:00:37]} Kg7 {[%emt 0:01:40]} 32. Bc4 {[%emt 0:01:29]} f6 {[%emt 0:00:16]} 33. Ra2 {[%emt 0:03:28]} Re5 {[%emt 0:03:10]} 34. a5 {[%emt 0:00:22]} Rxc5 {[%emt 0:00:09]} 35. Ra4 {[%emt 0:02:01]} Rxc4 {[%emt 0:01:45]} 36. bxc4 {[%emt 0:00:14]} c5 {[%emt 0:00:09]} 37. a6 {[%emt 0:00:16]} bxa6 {[%emt 0:00:04]} 38. Rxa6 {[%emt 0:00:04]} Rc1 {[%emt 0:00:07]} 39. Ra7+ {[%emt 0:00:12]} Kh6 {[%emt 0:00:14]} 0-1

[Event "106th British-ch Major 2019"]
[Site "Torquay"]
[Date "2019.08.01"]
[Round "6.20"]
[White "Cusick, Peter W"]
[Black "Liu, Jack"]
[Result "1-0"]
[ECO "E69"]
[WhiteElo "1971"]
[BlackElo "1259"]
[Annotator "NA"]
[PlyCount "69"]
[EventDate "2019.07.27"]
[EventType "swiss"]
[EventCountry "GBR"]
[SourceTitle "playchess.com"]
[Source "ChessBase"]
[SourceQuality "1"]
[TimeControl "40/5400+30:1800+30"]

1. d4 {[%emt 0:01:22]} Nf6 {[%emt 0:00:00]} 2. Nf3 {[%emt 0:00:17]} g6 {[%emt 0:00:00]} 3. g3 {[%emt 0:00:03]} Bg7 {[%emt 0:00:00]} 4. Bg2 {[%emt 0:00:03]} O-O {[%emt 0:00:00]} 5. c4 {[%emt 0:00:10]} d6 {[%emt 0:00:49]} 6. O-O {[%emt 0:00:13]} Nbd7 {[%emt 0:00:50]} 7. Nc3 {[%emt 0:00:07]} e5 {[%emt 0:00:53]} 8. h3 {[%emt 0:00:12]} c6 {[%emt 0:04:20]} 9. e4 {[%emt 0:02:14]} Qe7 {[%emt 0:08:09]} 10. Re1 {[%emt 0:04:34]} Rd8 {[%emt 0:03:22]} 11. Bg5 {[%emt 0:05:17]} h6 {[%emt 0:00:20]} 12. Be3 {[%emt 0:00:34]} Kh7 {[%emt 0:04:30]} 13. Qc2 {[%emt 0:03:27]} exd4 {[%emt 0:08:46]} 14. Nxd4 {[%emt 0:02:05]} Ne5 {[%emt 0:00:42]} 15. b3 {[%emt 0:02:41]} a6 {[%emt 0:05:34]} 16. Rad1 {[%emt 0:05:57]} c5 {[%emt 0:00:16]} 17. Nde2 {[%emt 0:00:55]} Be6 {[%emt 0:02:25]} 18. Nf4 {[%emt 0:19:23]} Rac8 {[%emt 0:03:16]} 19. Kh2 {[%emt 0:05:48]} Qc7 {[%emt 0:03:13]} 20. Re2 {[%emt 0:04:57]} Rd7 {[%emt 0:04:32]} 21. Red2 {[%emt 0:01:30]} Rcd8 {[%emt 0:00:50]} 22. Nfe2 {[%emt 0:02:24]} Nc6 {[%emt 0:02:23]} 23. f4 {[%emt 0:08:42]} Re7 {[%emt 0:00:10]} 24. Bf2 {[%emt 0:03:33]} Ne8 {[%emt 0:03:16]} 25. f5 {[%emt 0:03:15]} Bc8 {[%emt 0:03:45]} 26. Nd5 {[%emt 0:00:19]} Qd7 {[%emt 0:00:06]} 27. Nxe7 {[%emt 0:01:55]} Qxe7 {[%emt 0:00:08]} 28. Nf4 {[%emt 0:01:53]} Be5 {[%emt 0:00:26]} 29. Kg1 {[%emt 0:03:15]} Qg5 {[%emt 0:00:12]} 30. h4 {[%emt 0:02:31]} Qg4 {[%emt 0:00:32]} 31. fxg6+ {[%emt 0:01:09]} fxg6 {[%emt 0:00:17]} 32. Bh3 {[%emt 0:00:29]} Qf3 {[%emt 0:00:07]} 33. Bxc8 {[%emt 0:00:13]} Rxc8 {[%emt 0:00:09]} 34. Qd3 {[%emt 0:00:31]} Qg4 {[%emt 0:00:36]} 35. Qe2 {[%emt 0:01:11]} 1-0

[Event "106th British-ch Major 2019"]
[Site "Torquay"]
[Date "2019.08.01"]
[Round "6.21"]
[White "Rathbone-Jones, Ifan"]
[Black "Fathallah, Joe"]
[Result "1-0"]
[ECO "C01"]
[WhiteElo "1855"]
[BlackElo "1952"]
[Annotator "NA"]
[PlyCount "37"]
[EventDate "2019.07.27"]
[EventType "swiss"]
[EventCountry "GBR"]
[SourceTitle "playchess.com"]
[Source "ChessBase"]
[SourceQuality "1"]
[TimeControl "40/5400+30:1800+30"]

1. e4 {[%emt 0:00:00]} e6 {[%emt 0:00:00]} 2. d4 {[%emt 0:00:00]} d5 {[%emt 0:00:00]} 3. exd5 {[%emt 0:00:00]} exd5 {[%emt 0:00:00]} 4. Nf3 {[%emt 0:00:00]} Nf6 {[%emt 0:00:00]} 5. c4 {[%emt 0:00:08]} Bb4+ {[%emt 0:00:14]} 6. Nc3 {[%emt 0:01:41]} O-O {[%emt 0:00:44]} 7. Be2 {[%emt 0:01:47]} Ne4 {[%emt 0:02:17]} 8. Qb3 {[%emt 0:01:15]} Qe7 {[%emt 0:07:48]} 9. Be3 {[%emt 0:01:10]} Re8 {[%emt 0:05:30]} 10. O-O {[%emt 0:03:55]} Bxc3 {[%emt 0:02:38]} 11. bxc3 {[%emt 0:00:42]} dxc4 {[%emt 0:00:44]} 12. Bxc4 {[%emt 0:00:44]} Nc6 {[%emt 0:07:04]} 13. Ne5 {[%emt 0:10:23]} Nxe5 {[%emt 0:06:33]} 14. dxe5 {[%emt 0:00:06]} Be6 {[%emt 0:02:14]} 15. Bxe6 {[%emt 0:02:01]} Qxe6 {[%emt 0:08:49]} 16. Qxb7 {[%emt 0:08:05]} Qxe5 {[%emt 0:03:53]} 17. Bd4 {[%emt 0:00:18]} Qa5 {[%emt 0:02:26]} 18. Rae1 {[%emt 0:09:41]} Nxc3 {[%emt 0:03:38]} 19. Qc6 {[%emt 0:00:07]} 1-0

[Event "106th British-ch Major 2019"]
[Site "Torquay"]
[Date "2019.08.01"]
[Round "6.22"]
[White "Hosdurga, Chirag"]
[Black "Tombolis, Christopher"]
[Result "1-0"]
[ECO "D32"]
[WhiteElo "1926"]
[BlackElo "1883"]
[Annotator "NA"]
[PlyCount "89"]
[EventDate "2019.07.27"]
[EventType "swiss"]
[EventCountry "GBR"]
[SourceTitle "playchess.com"]
[Source "ChessBase"]
[SourceQuality "1"]
[TimeControl "40/5400+30:1800+30"]

1. Nf3 {[%emt 0:00:00]} d5 {[%emt 0:00:00]} 2. e3 {[%emt 0:00:00]} Nf6 {[%emt 0:00:00]} 3. c4 {[%emt 0:00:00]} e6 {[%emt 0:00:00]} 4. b3 {[%emt 0:00:00]} Be7 {[%emt 0:00:44]} 5. Bb2 {[%emt 0:00:00]} O-O {[%emt 0:00:08]} 6. Nc3 {[%emt 0:00:04]} c5 {[%emt 0:00:46]} 7. cxd5 {[%emt 0:00:39]} exd5 {[%emt 0:00:19]} 8. d4 {[%emt 0:00:09]} Bf5 {[%emt 0:00:45]} 9. Be2 {[%emt 0:00:42]} Nc6 {[%emt 0:00:44]} 10. O-O {[%emt 0:00:48]} Re8 {[%emt 0:00:41]} 11. Rc1 {[%emt 0:01:41]} cxd4 {[%emt 0:13:24]} 12. Nxd4 {[%emt 0:00:41]} Bd7 {[%emt 0:03:49]} 13. Bf3 {[%emt 0:03:54]} Rc8 {[%emt 0:00:30]} 14. Nxd5 {[%emt 0:06:42]} Ne5 {[%emt 0:00:47]} 15. Nxe7+ {[%emt 0:01:14]} Qxe7 {[%emt 0:00:15]} 16. Bxb7 {[%emt 0:04:34]} Rxc1 {[%emt 0:00:08]} 17. Bxc1 {[%emt 0:02:54]} Bg4 {[%emt 0:00:55]} 18. Bf3 {[%emt 0:00:41]} Nxf3+ {[%emt 0:00:32]} 19. Nxf3 {[%emt 0:00:45]} Rd8 {[%emt 0:00:07]} 20. Qe2 {[%emt 0:01:02]} Ne4 {[%emt 0:00:07]} 21. h3 {[%emt 0:09:33]} Nc3 {[%emt 0:00:45]} 22. Qc4 {[%emt 0:03:55]} Bxf3 {[%emt 0:00:44]} 23. Qxc3 {[%emt 0:01:40]} Qg5 {[%emt 0:00:29]} 24. g3 {[%emt 0:00:21]} Qh5 {[%emt 0:01:12]} 25. Qc7 {[%emt 0:09:36]} Qd5 {[%emt 0:01:26]} 26. Bb2 {[%emt 0:05:30]} Bh1 {[%emt 0:05:06]} 27. f3 {[%emt 0:05:12]} Re8 {[%emt 0:05:54]} 28. Kxh1 {[%emt 0:04:03]} Qe6 {[%emt 0:00:33]} 29. Kg2 {[%emt 0:01:56]} Qxe3 {[%emt 0:00:15]} 30. Qc3 {[%emt 0:00:30]} Qg5 {[%emt 0:00:01]} 31. Rf2 {[%emt 0:01:54]} h5 {[%emt 0:00:34]} 32. h4 {[%emt 0:00:31]} Qg6 {[%emt 0:00:41]} 33. Qc5 {[%emt 0:00:57]} f6 {[%emt 0:00:44]} 34. Qxa7 {[%emt 0:00:50]} Qb1 {[%emt 0:00:14]} 35. Qd4 {[%emt 0:05:56]} Re1 {[%emt 0:00:36]} 36. Qc4+ {[%emt 0:00:56]} Kf8 {[%emt 0:00:32]} 37. Ba3+ {[%emt 0:00:11]} Ke8 {[%emt 0:00:12]} 38. Re2+ {[%emt 0:00:07]} Rxe2+ {[%emt 0:00:10]} 39. Qxe2+ {[%emt 0:00:06]} Kf7 {[%emt 0:00:09]} 40. Bc5 {[%emt 0:00:19]} Qc1 {[%emt 0:00:33]} 41. b4 {[%emt 0:30:22]} g5 {[%emt 0:30:09]} 42. hxg5 {[%emt 0:01:11]} fxg5 {[%emt 0:00:42]} 43. Be3 {[%emt 0:00:10]} Qb1 {[%emt 0:00:11]} 44. Bxg5 {[%emt 0:00:09]} Qxb4 {[%emt 0:00:19]} 45. Qe7+ {[%emt 0:00:05]} 1-0